bitfinex/quotes_BTCUSD_20251027
["timestamp","ask_amount","ask_price","bid_price","bid_amount"]
[1761552772673,1.38487945,115510.0,115500.0,2.90319283]
[1761552772874,1.47469846,115510.0,115500.0,2.90319283]
[1761552773838,1.52883592,115510.0,115500.0,2.90319283]
[1761552774044,1.43901691,115510.0,115500.0,2.90319283]
[1761552775332,1.49441691,115510.0,115500.0,2.90319283]
[1761552776424,2.01113417,115510.0,115500.0,2.90319283]
[1761552776618,1.52536042,115510.0,115500.0,2.90319283]
[1761552778920,1.54146287,115510.0,115500.0,2.90319283]
[1761552779410,1.63128188,115510.0,115500.0,2.90319283]
[1761552780965,1.14550813,115510.0,115500.0,2.90319283]
[1761552781180,1.63128188,115510.0,115500.0,2.90319283]
[1761552781599,2.11705563,115510.0,115500.0,2.90319283]
[1761552781824,2.96829727,115510.0,115500.0,2.90319283]
[1761552782952,2.96929727,115510.0,115500.0,2.90119283]
[1761552785388,2.92285628,115510.0,115500.0,2.90119283]
[1761552785707,2.96929727,115510.0,115500.0,2.90119283]
[1761552785904,2.92285628,115510.0,115500.0,2.90119283]
[1761552786147,2.76137228,115510.0,115500.0,2.90119283]
[1761552786342,2.09492228,115510.0,115500.0,2.90119283]
[1761552786752,2.22569828,115510.0,115500.0,2.90119283]
[1761552787360,2.27213927,115510.0,115500.0,2.90119283]
[1761552787950,1.30059177,115510.0,115500.0,2.90119283]
[1761552788150,2.22569828,115510.0,115500.0,2.90119283]
[1761552788359,2.27213927,115510.0,115500.0,2.90119283]
[1761552789707,2.73908639,115510.0,115500.0,2.4337511]
[1761552789910,2.80749268,115510.0,115500.0,2.37993107]
[1761552790114,2.77654917,115510.0,115500.0,2.02852868]
[1761552790320,2.29077542,115510.0,115500.0,1.83448408]
[1761552790681,2.29077542,115510.0,115500.0,1.80851096]
[1761552790883,2.29077542,115510.0,115500.0,1.78253784]
[1761552791064,2.29077542,115510.0,115500.0,1.75656472]
[1761552791500,2.29377542,115510.0,115500.0,1.75656472]
[1761552791705,2.03006686,115510.0,115500.0,1.75656472]
[1761552791912,2.39994687,115510.0,115500.0,1.75656472]
[1761552792117,2.40494687,115510.0,115500.0,1.75656472]
[1761552792538,2.40594687,115510.0,115500.0,1.75656472]
[1761552792952,2.39494688,115510.0,115500.0,1.75656472]
[1761552793171,2.40494687,115510.0,115500.0,1.75656472]
[1761552793372,2.40594687,115510.0,115500.0,1.75656472]
[1761552793550,2.38984442,115510.0,115500.0,1.75656472]
[1761552793768,2.39593915,115510.0,115500.0,1.75656472]
[1761552794414,2.40593914,115510.0,115500.0,1.75656472]
[1761552794617,2.39593915,115510.0,115500.0,1.75656472]
[1761552794844,2.40593914,115510.0,115500.0,1.75656472]
[1761552795476,1.43439164,115510.0,115500.0,1.75656472]
[1761552795662,2.40593914,115510.0,115500.0,1.75656472]
[1761552795878,1.43439164,115510.0,115500.0,1.75656472]
[1761552796091,1.59088712,115510.0,115500.0,1.75656472]
[1761552796240,1.72001501,115510.0,115500.0,1.75656472]
[1761552796701,1.75619729,115510.0,115500.0,1.75656472]
[1761552796820,1.27042354,115510.0,115500.0,1.75656472]
[1761552797064,1.75619729,115510.0,115500.0,1.75656472]
[1761552797268,1.75119729,115510.0,115500.0,1.75656472]
[1761552797964,1.75319729,115510.0,115500.0,1.75656472]
[1761552798466,1.26842354,115510.0,115500.0,1.75656472]
[1761552798628,2.23997104,115510.0,115500.0,1.75656472]
[1761552798827,1.75419729,115510.0,115500.0,1.75656472]
[1761552799357,2.36454604,115510.0,115500.0,1.75656472]
[1761552799776,2.38773815,115510.0,115500.0,1.75656472]
[1761552800336,2.39548955,115510.0,115500.0,1.75656472]
[1761552801221,2.44193054,115510.0,115500.0,1.75656472]
[1761552804249,1.47038304,115510.0,115500.0,1.75656472]
[1761552804553,2.44193054,115510.0,115500.0,1.75656472]
[1761552806968,2.41098703,115510.0,115500.0,1.75656472]
[1761552807296,2.44186065,115510.0,115500.0,1.75656472]
[1761552807645,2.41098703,115510.0,115500.0,1.75656472]
[1761552808027,2.44186071,115510.0,115500.0,1.75656472]
[1761552808393,2.41098703,115510.0,115500.0,1.75656472]
[1761552808973,2.44186198,115510.0,115500.0,1.75656472]
[1761552810174,2.41098703,115510.0,115500.0,1.75656472]
[1761552813202,2.43844982,115510.0,115500.0,1.75656472]
[1761552813604,2.47381558,115510.0,115500.0,1.75656472]
[1761552814044,2.47417909,115510.0,115500.0,1.75656472]
[1761552819135,1.50263159,115510.0,115500.0,1.75656472]
[1761552819335,2.47417909,115510.0,115500.0,1.75656472]
[1761552819926,2.47417909,115510.0,115500.0,1.73058849]
[1761552820485,2.47417909,115510.0,115500.0,1.70461226]
[1761552821237,2.47417909,115510.0,115500.0,1.67863603]
[1761552821467,2.45863218,115510.0,115500.0,1.26236095]
[1761552821668,2.45863218,115510.0,115500.0,1.21040849]
[1761552821830,2.45863218,115510.0,115500.0,1.18443226]
[1761552825062,2.4586212,115510.0,115500.0,1.18443226]
[1761552825268,2.4586212,115510.0,115500.0,1.15845603]
[1761552825529,2.95439494,115510.0,115500.0,0.64094047]
[1761552825830,2.95439494,115510.0,115500.0,0.38685012]
[1761552826037,2.95439494,115510.0,115500.0,0.36087389]
[1761552826243,2.95439494,115510.0,115500.0,0.33489766]
[1761552826451,2.95439494,115510.0,115500.0,0.30892143]
[1761552826452,2.46862119,115510.0,115500.0,0.30892143]
[1761552826624,2.37489856,115510.0,115500.0,0.2829452]
[1761552826854,2.41579263,115510.0,115500.0,0.25696897]
[1761552827056,2.41579263,115510.0,115500.0,0.23099274]
[1761552827180,2.41579263,115510.0,115500.0,0.20501651]
[1761552827711,2.40579264,115510.0,115500.0,0.20501651]
[1761552827915,2.41579263,115510.0,115500.0,0.20501651]
[1761552828623,2.40579264,115510.0,115500.0,0.20501651]
[1761552829001,2.41579263,115510.0,115500.0,0.20501651]
[1761552829200,2.90156638,115510.0,115500.0,0.20501651]
[1761552829857,2.41579263,115510.0,115500.0,0.20501651]
[1761552830016,2.40579264,115510.0,115500.0,0.20501651]
[1761552830214,2.41579263,115510.0,115500.0,0.20501651]
[1761552830441,2.40579264,115510.0,115500.0,0.20501651]
[1761552830834,2.41579263,115510.0,115500.0,0.17903957]
[1761552831680,2.41579263,115510.0,115500.0,0.15306263]
[1761552831886,2.44325542,115510.0,115500.0,0.12708569]
[1761552832094,2.44325542,115510.0,115500.0,0.10110875]
[1761552832295,2.92902917,115510.0,115500.0,0.10110875]
[1761552832586,0.55934244,115500.0,115490.0,0.0004]
[1761552832782,4.25410165,115500.0,115490.0,0.0004]
[1761552833338,4.25756692,115500.0,115490.0,0.0004]
[1761552833778,3.66459535,115500.0,115490.0,0.0004]
[1761552834409,2.82889651,115500.0,115490.0,0.0004]
[1761552834588,3.26107135,115500.0,115490.0,0.0004]
[1761552835045,3.28534038,115500.0,115490.0,0.0004]
[1761552835372,3.31622644,115500.0,115490.0,0.0004]
[1761552835539,3.28434038,115500.0,115490.0,0.0004]
[1761552835742,3.30266038,115500.0,115490.0,0.0004]
[1761552835946,3.28534038,115500.0,115490.0,0.0004]
[1761552836369,3.28634038,115500.0,115490.0,0.0004]
[1761552837138,3.53474038,115500.0,115490.0,0.0004]
[1761552837641,2.40739054,115500.0,115490.0,0.0004]
[1761552837827,2.23564554,115500.0,115490.0,0.0004]
[1761552838012,2.22564555,115500.0,115490.0,0.0004]
[1761552838218,2.22564555,115500.0,115490.0,0.00060575]
[1761552838650,2.60656555,115500.0,115490.0,0.00060575]
[1761552838917,2.25097255,115500.0,115490.0,0.00060575]
[1761552841528,2.68314739,115500.0,115490.0,0.00060575]
[1761552842215,2.25097255,115500.0,115490.0,0.00060575]
[1761552842389,2.69314738,115500.0,115490.0,0.00060575]
[1761552842602,2.64670639,115500.0,115490.0,0.00060575]
[1761552843294,2.67416918,115500.0,115490.0,0.00060575]
[1761552843478,2.7360905,115500.0,115490.0,0.00060575]
[1761552843676,2.76145627,115500.0,115490.0,0.00060575]
[1761552844251,2.69953495,115500.0,115490.0,0.00060575]
[1761552846478,2.76145627,115500.0,115490.0,0.00060575]
[1761552847065,0.98156228,115470.0,115460.0,0.0004]
[1761552847274,1.40354828,115470.0,115460.0,0.00044846]
[1761552847702,0.60541,115450.0,115430.0,0.1621565]
[1761552847902,0.60541,115450.0,115430.0,0.17956516]
[1761552847903,0.24213901,115440.0,115430.0,0.17956516]
[1761552848107,0.24213901,115440.0,115430.0,0.17081975]
[1761552848465,0.24213901,115440.0,115430.0,0.17205487]
[1761552848878,0.27832129,115440.0,115430.0,0.17205487]
[1761552849311,0.9391463,115440.0,115430.0,0.00123512]
[1761552850499,0.9391463,115440.0,115430.0,0.01723512]
[1761552850697,0.9391463,115440.0,115430.0,0.00123512]
[1761552850903,0.50697146,115440.0,115430.0,0.00123512]
[1761552851102,0.9391463,115440.0,115430.0,0.01123512]
[1761552851304,1.05495825,115440.0,115430.0,0.01123512]
[1761552851514,0.62278341,115440.0,115430.0,0.01123512]
[1761552851716,1.05495825,115440.0,115430.0,0.01123512]
[1761552852407,0.5329644,115440.0,115430.0,0.01123512]
[1761552852616,0.96513924,115440.0,115430.0,0.01123512]
[1761552853152,1.30513924,115440.0,115430.0,0.01123512]
[1761552854314,1.30513924,115440.0,115430.0,0.00123512]
[1761552854657,1.30513924,115440.0,115430.0,0.01023512]
[1761552854857,1.39495825,115440.0,115430.0,0.01023512]
[1761552855550,0.17326518,115430.0,115420.0,0.00721201]
[1761552855707,0.26308419,115430.0,115420.0,0.00721201]
[1761552856295,0.2890803,115430.0,115420.0,0.00721201]
[1761552856500,0.26308419,115430.0,115420.0,0.00721201]
[1761552856853,0.69525903,115430.0,115420.0,0.01821201]
[1761552857058,0.69525903,115430.0,115420.0,0.011]
[1761552857524,0.69525903,115430.0,115420.0,0.01821493]
[1761552858334,0.69525903,115430.0,115420.0,0.011]
[1761552858517,0.26308419,115430.0,115420.0,0.011]
[1761552858719,0.69525903,115430.0,115420.0,0.01821493]
[1761552859315,0.69525903,115430.0,115420.0,0.011]
[1761552859316,0.26308419,115430.0,115420.0,0.011]
[1761552859516,0.69525903,115430.0,115420.0,0.01821493]
[1761552859676,0.75530486,115430.0,115420.0,0.01821493]
[1761552859877,0.69525903,115430.0,115420.0,0.01821493]
[1761552860251,0.26308419,115430.0,115420.0,0.011]
[1761552860505,0.26308419,115430.0,115420.0,0.01821493]
[1761552860648,0.08981901,115430.0,115420.0,0.19149512]
[1761552860859,0.08981901,115430.0,115420.0,0.18428019]
[1761552861171,0.08981901,115430.0,115420.0,0.18448611]
[1761552861604,0.12600129,115430.0,115420.0,0.18448611]
[1761552864392,0.08981901,115430.0,115420.0,0.18448611]
[1761552865248,0.15312486,115430.0,115420.0,0.18448611]
[1761552865412,0.08981901,115430.0,115420.0,0.18448611]
[1761552871092,0.08981901,115430.0,115420.0,0.61666095]
[1761552872265,0.15232,115440.0,115430.0,0.17326518]
[1761552872469,0.24213901,115440.0,115430.0,0.18047636]
[1761552875655,0.24213901,115440.0,115430.0,0.6126512]
[1761552875858,0.24213901,115440.0,115430.0,0.60544002]
[1761552876263,0.24213901,115440.0,115430.0,0.17326518]
[1761552876500,0.24213901,115440.0,115430.0,0.18047636]
[1761552876843,0.08981901,115440.0,115430.0,0.18047636]
[1761552882828,0.08981901,115440.0,115430.0,0.17326518]
[1761552882976,0.1141153,115440.0,115430.0,0.17326518]
[1761552883188,0.08981901,115440.0,115430.0,0.17326518]
[1761552884239,0.12600129,115440.0,115430.0,0.17326518]
[1761552885749,0.12600129,115440.0,115430.0,0.18047636]
[1761552895104,0.12600129,115440.0,115430.0,0.66668408]
[1761552895324,0.12600129,115440.0,115430.0,0.6594729]
[1761552895543,0.12600129,115440.0,115430.0,0.17326518]
[1761552895762,0.12600129,115440.0,115430.0,0.18047636]
[1761552896554,0.87527819,115440.0,115430.0,0.17326518]
[1761552896732,0.87527819,115440.0,115430.0,0.18047636]
[1761552896733,0.38907047,115440.0,115430.0,0.18047636]
[1761552896943,0.12600129,115440.0,115430.0,0.18047636]
[1761552900328,0.08981901,115440.0,115430.0,0.18047636]
[1761552900501,0.08981901,115440.0,115430.0,0.66668408]
[1761552900706,0.08981901,115440.0,115430.0,0.6594729]
[1761552901544,0.08981901,115440.0,115430.0,0.17326518]
[1761552901716,0.08981901,115440.0,115430.0,0.66668408]
[1761552901952,0.08981901,115440.0,115430.0,0.6594729]
[1761552902160,0.00082391,115450.0,115440.0,0.17325017]
[1761552902362,0.24296292,115450.0,115440.0,0.66666532]
[1761552902517,0.24296292,115450.0,115440.0,0.65945789]
[1761552903095,0.24296292,115450.0,115440.0,0.17325017]
[1761552903238,0.24296292,115450.0,115440.0,0.66666532]
[1761552903446,0.24296292,115450.0,115440.0,0.65945789]
[1761552903871,0.24296292,115450.0,115440.0,0.17325017]
[1761552904104,0.24296292,115450.0,115440.0,0.66666532]
[1761552904298,0.24296292,115450.0,115440.0,0.17325017]
[1761552904528,0.24296292,115450.0,115440.0,0.1804576]
[1761552904826,0.26895124,115450.0,115440.0,0.1804576]
[1761552907038,0.26895124,115450.0,115440.0,0.66666532]
[1761552907213,0.26895124,115450.0,115440.0,1.14566561]
[1761552907214,0.00082391,115450.0,115440.0,1.14566561]
[1761552907417,0.00082391,115450.0,115440.0,0.65945789]
[1761552908363,0.00082391,115450.0,115440.0,0.6682077]
[1761552908537,0.00082391,115450.0,115440.0,0.65945789]
[1761552908739,0.00082391,115450.0,115440.0,1.14566561]
[1761552909437,0.00082391,115450.0,115440.0,0.17325017]
[1761552909680,0.00082391,115450.0,115440.0,0.1804576]
[1761552909888,0.00082391,115450.0,115440.0,0.66666532]
[1761552910057,0.00082391,115450.0,115440.0,0.65945789]
[1761552910291,0.00082391,115450.0,115440.0,0.66245789]
[1761552910701,0.00082391,115450.0,115440.0,1.14866561]
[1761552915033,0.00082391,115450.0,115440.0,1.14566561]
[1761552915437,0.00082391,115450.0,115440.0,1.15366561]
[1761552916949,0.00082391,115450.0,115440.0,1.49366561]
[1761552918120,0.00082391,115450.0,115440.0,0.52125017]
[1761552918320,0.00082391,115450.0,115440.0,1.49366561]
[1761552919467,0.00082391,115450.0,115440.0,1.00745789]
[1761552920907,0.00082391,115450.0,115440.0,0.52125017]
[1761552921104,0.00082391,115450.0,115440.0,1.00745789]
[1761552921554,0.00082391,115450.0,115440.0,0.52125017]
[1761552921784,0.00082391,115450.0,115440.0,1.15969789]
[1761552921981,0.00082391,115450.0,115440.0,0.52125017]
[1761552922182,0.00082391,115450.0,115440.0,1.00745789]
[1761552923040,0.00082391,115450.0,115440.0,1.49366561]
[1761552923236,0.00082391,115450.0,115440.0,1.00745789]
[1761552931247,0.00082391,115450.0,115440.0,1.00745789]
[1761552931452,0.00082391,115450.0,115440.0,0.18125017]
[1761552932630,0.00082391,115450.0,115440.0,0.66745789]
[1761552932832,0.00082391,115450.0,115440.0,0.18125017]
[1761552933072,0.00082391,115450.0,115440.0,0.66745789]
[1761552933879,0.00082391,115450.0,115440.0,0.65945789]
[1761552934436,0.00082391,115450.0,115440.0,0.66245789]
[1761552936564,0.00082391,115450.0,115440.0,0.17625017]
[1761552936765,0.00082391,115450.0,115440.0,0.66966532]
[1761552936973,0.00082391,115450.0,115440.0,0.66245789]
[1761552938188,0.00082391,115450.0,115440.0,1.30090561]
[1761552938578,0.00082391,115450.0,115440.0,0.81469789]
[1761552938915,0.00082391,115450.0,115440.0,0.32849017]
[1761552939093,0.00082391,115450.0,115440.0,0.66245789]
[1761552939313,0.00082391,115450.0,115440.0,0.17625017]
[1761552939523,0.00082391,115450.0,115440.0,0.1834576]
[1761552940924,0.00082391,115450.0,115440.0,0.66966532]
[1761552941158,0.00082391,115450.0,115440.0,0.66245789]
[1761552941933,0.00082391,115450.0,115440.0,0.17625017]
[1761552942120,0.00082391,115450.0,115440.0,0.66966532]
[1761552942274,0.00082391,115450.0,115440.0,0.17625017]
[1761552942483,0.00082391,115450.0,115440.0,0.66966532]
[1761552942826,0.00082391,115450.0,115440.0,0.66245789]
[1761552943546,0.00082391,115450.0,115440.0,1.14866561]
[1761552943853,0.00082391,115450.0,115440.0,0.17625017]
[1761552944090,0.00082391,115450.0,115440.0,1.15587304]
[1761552944297,0.00082391,115450.0,115440.0,1.14866561]
[1761552947182,0.24843075,115470.0,115460.0,0.17322016]
[1761552947430,0.24843075,115470.0,115460.0,0.18042009]
[1761552947431,0.33824976,115470.0,115460.0,0.18042009]
[1761552947756,0.33866137,115470.0,115460.0,0.18042009]
[1761552948624,0.34166137,115470.0,115460.0,0.18042009]
[1761552951147,0.27949453,115470.0,115460.0,0.66662781]
[1761552951351,0.27949453,115470.0,115460.0,0.17322016]
[1761552951559,0.27949453,115470.0,115460.0,0.66662781]
[1761552951754,0.27949453,115470.0,115460.0,0.65942788]
[1761552952724,0.14863062,115470.0,115460.0,0.65942788]
[1761552952946,0.00341161,115470.0,115460.0,0.17322016]
[1761552953167,0.00341161,115470.0,115460.0,0.66662781]
[1761552953347,0.00041161,115470.0,115460.0,0.65942788]
[1761552953566,0.00041161,115470.0,115460.0,0.17322016]
[1761552953776,0.00041161,115470.0,115460.0,0.66662781]
[1761552953978,0.00041161,115470.0,115460.0,0.65942788]
[1761552955875,0.00041161,115470.0,115460.0,0.17322016]
[1761552956086,0.00041161,115470.0,115460.0,0.18042009]
[1761552962907,5.161e-05,115470.0,115460.0,0.18042009]
[1761552964755,0.02603354,115470.0,115460.0,0.18042009]
[1761552968731,0.02603354,115470.0,115460.0,0.95230146]
[1761552968732,5.161e-05,115470.0,115460.0,0.95230146]
[1761552968934,5.161e-05,115470.0,115460.0,0.94510153]
[1761552970511,5.161e-05,115470.0,115460.0,0.95010153]
[1761552971132,5.161e-05,115470.0,115460.0,1.23992054]
[1761552971550,5.161e-05,115470.0,115460.0,0.80803917]
[1761552971757,5.161e-05,115470.0,115460.0,1.23992054]
[1761552976054,5.161e-05,115470.0,115460.0,1.03992054]
[1761552980250,5.161e-05,115470.0,115460.0,1.24748054]
[1761552987802,5.161e-05,115470.0,115460.0,1.03992054]
[1761552988189,5.161e-05,115470.0,115460.0,1.24748054]
[1761552989027,5.161e-05,115470.0,115460.0,1.30974677]
[1761552989251,5.161e-05,115470.0,115460.0,1.24748054]
[1761552989476,5.161e-05,115470.0,115460.0,1.30974677]
[1761552990167,5.161e-05,115470.0,115460.0,1.10218677]
[1761552990408,5.161e-05,115470.0,115460.0,1.24748054]
[1761552990629,5.161e-05,115470.0,115460.0,1.30974677]
[1761552991273,5.161e-05,115470.0,115460.0,1.24748054]
[1761552993328,5.161e-05,115470.0,115460.0,1.44748054]
[1761552993982,5.161e-05,115470.0,115460.0,1.50974677]
[1761552994667,5.161e-05,115470.0,115460.0,1.44748054]
[1761552995519,5.161e-05,115470.0,115460.0,1.50974677]
[1761552996575,5.161e-05,115470.0,115460.0,2.05276812]
[1761552996790,5.161e-05,115470.0,115460.0,1.62088675]
[1761552996998,5.161e-05,115470.0,115460.0,1.21497761]
[1761552997212,5.161e-05,115470.0,115460.0,1.12383761]
[1761552997468,5.161e-05,115470.0,115460.0,1.55571898]
[1761552997887,5.161e-05,115470.0,115460.0,1.54571899]
[1761552998118,5.161e-05,115470.0,115460.0,1.55571898]
[1761552998323,0.02543298,115520.0,115510.0,0.17314518]
[1761552998523,0.11539753,115520.0,115510.0,0.17314518]
[1761552998946,0.116426,115520.0,115510.0,0.17314518]
[1761552999596,0.58448965,115520.0,115510.0,0.17314518]
[1761552999796,0.58648965,115520.0,115510.0,0.17314518]
[1761553000286,0.15460828,115520.0,115510.0,0.17314518]
[1761553000487,0.15460828,115520.0,115510.0,0.18032636]
[1761553002974,0.58648965,115520.0,115510.0,0.18032636]
[1761553004348,0.15460828,115520.0,115510.0,0.18032636]
[1761553004551,0.58648965,115520.0,115510.0,0.18032636]
[1761553005236,0.15460828,115520.0,115510.0,0.18032636]
[1761553005427,0.58648965,115520.0,115510.0,0.18032636]
[1761553006640,0.58648965,115520.0,115510.0,0.17314518]
[1761553006842,0.55030737,115520.0,115510.0,0.17314518]
[1761553007308,0.58648965,115520.0,115510.0,0.17314518]
[1761553007999,0.15460828,115520.0,115510.0,0.17314518]
[1761553008201,0.58648965,115520.0,115510.0,0.17314518]
[1761553009000,0.75961984,115520.0,115510.0,0.17314518]
[1761553009239,0.15460828,115520.0,115510.0,0.17314518]
[1761553009441,0.58648965,115520.0,115510.0,0.17314518]
[1761553009962,0.75961984,115520.0,115510.0,0.17314518]
[1761553010374,0.72343756,115520.0,115510.0,0.17314518]
[1761553011438,0.75961984,115520.0,115510.0,0.17314518]
[1761553011616,0.58648965,115520.0,115510.0,0.17314518]
[1761553012315,0.15460828,115520.0,115510.0,0.17314518]
[1761553012476,0.58648965,115520.0,115510.0,0.17314518]
[1761553013222,0.75961984,115520.0,115510.0,0.17314518]
[1761553014273,0.32773847,115520.0,115510.0,0.17314518]
[1761553014510,0.75961984,115520.0,115510.0,0.17314518]
[1761553017855,0.90321844,115520.0,115510.0,0.17314518]
[1761553018481,0.81339943,115520.0,115510.0,0.17314518]
[1761553019972,0.32773847,115520.0,115500.0,0.17316017]
[1761553020196,0.27812129,115510.0,115500.0,0.00718337]
[1761553020374,1.42341124,115510.0,115500.0,0.00718337]
[1761553020851,1.44938975,115510.0,115500.0,0.00718337]
[1761553021054,0.56788684,115510.0,115500.0,0.00718337]
[1761553021252,0.96372879,115510.0,115500.0,0.00718337]
[1761553021379,0.32794783,115510.0,115500.0,0.18034354]
[1761553021738,1.50474975,115510.0,115500.0,0.00718337]
[1761553021933,1.50474975,115510.0,115480.0,0.18902837]
[1761553021934,0.03618228,115490.0,115480.0,0.18902837]
[1761553022094,0.76378225,115490.0,115480.0,0.18184344]
[1761553022302,0.93695741,115490.0,115480.0,0.00719243]
[1761553022507,1.02718791,115490.0,115480.0,0.00719243]
[1761553023118,1.05316842,115490.0,115480.0,0.00719243]
[1761553023802,1.05316842,115490.0,115480.0,0.00819243]
[1761553024104,0.56750746,115490.0,115480.0,0.00819243]
[1761553024202,0.20779329,115490.0,115480.0,0.18138259]
[1761553024413,0.32373101,115490.0,115480.0,0.18138259]
[1761553025314,0.53308845,115490.0,115480.0,0.00819243]
[1761553025523,1.01874941,115490.0,115480.0,0.00819243]
[1761553025726,1.10856842,115490.0,115480.0,0.00819243]
[1761553026140,1.10856842,115490.0,115480.0,0.00719243]
[1761553026572,0.20937244,115480.0,115470.0,0.18039759]
[1761553026780,0.08981901,115480.0,115470.0,0.18039759]
[1761553026936,0.24209901,115480.0,115470.0,0.18039759]
[1761553027149,0.76394225,115480.0,115470.0,0.18039759]
[1761553027960,0.27828129,115480.0,115470.0,0.18039759]
[1761553028165,0.76394225,115480.0,115470.0,0.18039759]
[1761553028374,0.28028129,115480.0,115470.0,0.18039759]
[1761553029572,0.24409901,115480.0,115470.0,0.66605855]
[1761553029762,0.24409901,115480.0,115470.0,0.65886612]
[1761553030635,0.09181901,115480.0,115470.0,0.65886612]
[1761553030882,0.002,115480.0,115470.0,1.14452708]
[1761553031337,0.002,115480.0,115470.0,0.65886612]
[1761553031832,0.15244,115490.0,115480.0,0.17319016]
[1761553032037,0.02597853,115500.0,115490.0,0.17317516]
[1761553032163,0.26842306,115500.0,115490.0,0.17317516]
[1761553032380,0.26904025,115500.0,115490.0,0.18036384]
[1761553032589,0.30148428,115500.0,115490.0,0.18036384]
[1761553032794,0.26904025,115500.0,115490.0,0.18036384]
[1761553033012,0.75470121,115500.0,115490.0,0.18036384]
[1761553033412,0.26904025,115500.0,115490.0,0.18036384]
[1761553034807,0.27304025,115500.0,115490.0,0.18036384]
[1761553035850,0.90588285,115500.0,115490.0,0.18036384]
[1761553036061,0.75869916,115500.0,115490.0,0.18036384]
[1761553037110,0.73272268,115500.0,115490.0,0.18036384]
[1761553037528,0.72872268,115500.0,115490.0,0.18036384]
[1761553037746,0.24306172,115500.0,115490.0,0.18036384]
[1761553037945,0.24506172,115500.0,115490.0,0.18036384]
[1761553041711,0.15516271,115500.0,115490.0,0.6660248]
[1761553041917,0.15516271,115500.0,115490.0,0.65883612]
[1761553046760,0.15516271,115500.0,115490.0,0.17317516]
[1761553047000,0.15516271,115500.0,115490.0,0.6660248]
[1761553047204,0.15516271,115500.0,115490.0,0.17317516]
[1761553047404,0.15516271,115500.0,115490.0,0.18036384]
[1761553047625,0.15516271,115500.0,115490.0,0.6660248]
[1761553047757,0.15516271,115500.0,115490.0,0.17317516]
[1761553047959,0.15516271,115500.0,115490.0,0.6660248]
[1761553048161,0.15516271,115500.0,115490.0,0.65883612]
[1761553050678,0.73064268,115500.0,115490.0,0.17317516]
[1761553050851,0.73064268,115500.0,115490.0,0.18036384]
[1761553051293,0.24498172,115500.0,115490.0,0.18036384]
[1761553052751,0.24498172,115500.0,115490.0,0.6660248]
[1761553052752,0.15516271,115500.0,115490.0,0.6660248]
[1761553052951,0.15516271,115500.0,115490.0,0.65883612]
[1761553053158,0.15516271,115500.0,115490.0,0.17317516]
[1761553053370,0.24498172,115500.0,115490.0,0.18036384]
[1761553054560,0.90380285,115500.0,115490.0,0.00718868]
[1761553054760,1.42564609,115500.0,115490.0,0.00718868]
[1761553054962,1.45162683,115500.0,115490.0,0.00718868]
[1761553055410,0.20935744,115490.0,115480.0,0.00718868]
[1761553055619,0.84023741,115490.0,115480.0,0.18037884]
[1761553057152,0.84023741,115490.0,115480.0,0.18237884]
[1761553057842,0.86621815,115490.0,115480.0,0.18237884]
[1761553058299,0.38055719,115490.0,115480.0,0.18237884]
[1761553058477,0.69304299,115490.0,115480.0,0.18237884]
[1761553058822,0.86621815,115490.0,115480.0,0.18237884]
[1761553059080,0.38055719,115490.0,115480.0,0.18237884]
[1761553059312,0.86621815,115490.0,115480.0,0.18237884]
[1761553059620,0.38055719,115490.0,115480.0,0.18237884]
[1761553059825,0.86621815,115490.0,115480.0,0.18137884]
[1761553060033,0.38055719,115490.0,115480.0,0.18137884]
[1761553060234,0.11579975,115490.0,115480.0,0.6670398]
[1761553060446,0.29761901,115490.0,115480.0,0.17419016]
[1761553060655,0.29961901,115490.0,115480.0,0.18138259]
[1761553060860,0.3000305,115490.0,115480.0,0.18038259]
[1761553063051,0.3000305,115490.0,115480.0,0.66604355]
[1761553063262,0.3000305,115490.0,115480.0,0.65885112]
[1761553063645,0.3000305,115490.0,115480.0,0.17319016]
[1761553063845,0.3000305,115490.0,115480.0,0.18038259]
[1761553067135,0.82187374,115490.0,115480.0,0.18038259]
[1761553068541,0.9950489,115490.0,115480.0,0.18038259]
[1761553068958,1.02103006,115490.0,115480.0,0.18038259]
[1761553069533,0.8478549,115490.0,115480.0,0.18038259]
[1761553070187,0.8478549,115490.0,115480.0,0.00719243]
[1761553070188,1.02103006,115490.0,115480.0,0.00719243]
[1761553070390,1.11084907,115490.0,115480.0,0.18038259]
[1761553071365,0.36219394,115490.0,115480.0,0.18038259]
[1761553071571,0.8478549,115490.0,115480.0,0.18038259]
[1761553072421,1.02103006,115490.0,115480.0,0.18038259]
[1761553073180,0.8478549,115490.0,115480.0,0.18038259]
[1761553073405,0.36219394,115490.0,115480.0,0.18038259]
[1761553074400,0.15439394,115490.0,115480.0,0.18038259]
[1761553074616,0.28081278,115490.0,115480.0,0.18038259]
[1761553077471,0.28081278,115490.0,115480.0,0.17319016]
[1761553077472,0.76647374,115490.0,115480.0,0.17319016]
[1761553077786,0.28081278,115490.0,115480.0,0.17319016]
[1761553080349,0.28081278,115490.0,115480.0,0.18038259]
[1761553081286,0.2446305,115490.0,115480.0,0.18038259]
[1761553083970,0.15481149,115490.0,115480.0,0.61225487]
[1761553084179,0.00241149,115490.0,115480.0,0.60506244]
[1761553085564,0.00241149,115490.0,115480.0,0.94506244]
[1761553086590,0.00241149,115490.0,115480.0,0.51319016]
[1761553086800,0.00241149,115490.0,115480.0,0.94506244]
[1761553090874,0.00041149,115490.0,115480.0,0.94506244]
[1761553091284,0.00041149,115490.0,115480.0,0.94706244]
[1761553101425,0.00041149,115490.0,115480.0,0.51519016]
[1761553101996,0.00041149,115490.0,115480.0,0.66743016]
[1761553102546,0.00041149,115490.0,115480.0,0.51519016]
[1761553102756,0.00041149,115490.0,115480.0,0.66743016]
[1761553103840,0.00041149,115490.0,115480.0,0.51519016]
[1761553104065,0.52210278,115490.0,115480.0,0.17519016]
[1761553104274,0.0902305,115490.0,115480.0,0.17519016]
[1761553104479,0.14461983,115490.0,115480.0,0.17519016]
[1761553104892,0.0902305,115490.0,115480.0,0.17519016]
[1761553105101,0.0902305,115490.0,115480.0,0.17419016]
[1761553105301,0.0902305,115490.0,115480.0,0.17319016]
[1761553105502,0.0902305,115490.0,115480.0,0.17419016]
[1761553105713,0.0902305,115490.0,115480.0,0.17519016]
[1761553106071,0.0902305,115490.0,115480.0,0.17419016]
[1761553106438,0.0922305,115490.0,115480.0,0.17419016]
[1761553106840,0.0922305,115490.0,115480.0,0.17319016]
[1761553108850,0.2444705,115490.0,115480.0,0.17319016]
[1761553112832,0.2444705,115490.0,115480.0,0.18038259]
[1761553113044,0.15465149,115490.0,115480.0,0.61225487]
[1761553113249,0.15465149,115490.0,115480.0,0.17319016]
[1761553113473,0.15465149,115490.0,115480.0,0.18038259]
[1761553115612,0.00241149,115490.0,115480.0,0.18038259]
[1761553119310,0.00241149,115490.0,115480.0,0.95225487]
[1761553119534,0.00241149,115490.0,115480.0,1.09726244]
[1761553121417,1e-08,115490.0,115480.0,1.53913471]
[1761553121637,1e-08,115490.0,115480.0,1.10726243]
[1761553121835,1e-08,115490.0,115480.0,1.09726244]
[1761553122116,1e-08,115490.0,115480.0,1.10726243]
[1761553122569,1e-08,115490.0,115480.0,1.52913472]
[1761553122717,0.00814552,115500.0,115490.0,0.17317516]
[1761553122916,0.00814552,115500.0,115490.0,0.61223612]